bitfinex/quotes_SOLUSD_20260113
["timestamp","ask_amount","ask_price","bid_price","bid_amount"]
[1768281627579,0.71121692,140.32,140.27,9.09357658]
[1768281629491,0.71121692,140.32,140.23,18.57565288]
[1768281629796,0.71121692,140.32,140.26,9.09357658]
[1768281629988,0.71121692,140.32,140.26,7.12959166]
[1768281630408,0.71121692,140.32,140.28,9.09357658]
[1768281630810,32.8098394,140.38,140.28,9.09357658]
[1768281630811,0.71121692,140.36,140.31,9.09357658]
[1768281631009,0.71121692,140.36,140.29,0.03468449]
[1768281631314,17.8062076,140.41,140.3,7.16208838]
[1768281631315,0.71121692,140.38,140.3,7.16208838]
[1768281631523,0.71121692,140.38,140.33,9.09357658]
[1768281631893,0.71121692,140.38,140.33,7.83864378]
[1768281632112,0.71121692,140.38,140.33,0.712606]
[1768281632287,0.71121692,140.38,140.3,13.05468449]
[1768281632288,0.71121692,140.38,140.34,9.09357658]
[1768281632491,0.71121692,140.38,140.35,9.09357658]
[1768281632814,17.34791915,140.45,140.37,9.09357658]
[1768281632815,0.71121692,140.44,140.37,9.09357658]
[1768281632989,0.68534562,140.44,140.35,0.03468449]
[1768281633197,0.68534562,140.44,140.36,0.06055579]
[1768281633406,0.68534562,140.44,140.37,0.06055579]
[1768281633592,17.34791915,140.45,140.42,9.09357658]
[1768281634213,17.34791915,140.45,140.37,0.06055579]
[1768281634517,17.34791915,140.45,140.36,7.1245369]
[1768281634728,17.34791915,140.45,140.41,9.09357658]
[1768281635025,17.34791915,140.45,140.4,9.15413237]
[1768281635221,17.34791915,140.45,140.36,25.64833285]
[1768281635222,17.34791915,140.45,140.38,0.06055579]
[1768281635426,0.66019908,140.44,140.34,6.74066649]
[1768281635616,17.34791915,140.45,140.38,9.09357658]
[1768281635617,0.66019908,140.43,140.38,9.09357658]
[1768281635918,0.66019908,140.43,140.4,9.09357658]
[1768281636115,0.66019908,140.43,140.32,0.71265678]
[1768281636318,0.66019908,140.41,140.33,6.6801107]
[1768281636511,0.66019908,140.41,140.36,9.09357658]
[1768281636823,0.66019908,140.41,140.38,9.09357658]
[1768281637017,0.66019908,140.41,140.36,9.09357658]
[1768281637207,0.66019908,140.41,140.34,9.09357658]
[1768281637411,0.66019908,140.41,140.36,9.09357658]
[1768281637803,0.66019908,140.41,140.34,7.12511491]
[1768281638007,0.66019908,140.41,140.36,9.09357658]
[1768281638206,0.66019908,140.41,140.35,9.09357658]
[1768281639013,0.66019908,140.41,140.34,7.12553001]
[1768281639215,0.66019908,140.41,140.35,9.09357658]
[1768281639606,0.66019908,140.41,140.34,7.12553001]
[1768281640005,0.66019908,140.41,140.35,9.09357658]
[1768281640425,0.66019908,140.4,140.35,9.09357658]
[1768281640927,0.66019908,140.38,140.32,13.02]
[1768281641139,0.63019909,140.38,140.34,9.09357658]
[1768281641314,17.34791915,140.45,140.35,9.09357658]
[1768281641315,35.14791431,140.45,140.35,9.09357658]
[1768281641520,9.09357658,140.43,140.36,9.09357658]
[1768281641831,13.0,140.44,140.39,9.09357658]
[1768281642006,39.44149573,140.45,140.38,9.09357658]
[1768281642333,26.44149573,140.45,140.38,9.09357658]
[1768281642538,37.46799249,140.45,140.38,9.09357658]
[1768281642700,17.34791915,140.45,140.39,9.09357658]
[1768281643043,17.34791915,140.45,140.36,0.09055578]
[1768281643044,0.66019908,140.44,140.36,0.09055578]
[1768281643200,18.00811823,140.45,140.4,9.09357658]
[1768281643620,27.10169481,140.45,140.39,9.09357658]
[1768281643816,27.10169481,140.45,140.38,0.09055578]
[1768281644014,0.66019908,140.44,140.38,0.09055578]
[1768281644326,33.56160216,140.45,140.37,9.09357658]
[1768281644327,0.66019908,140.41,140.37,9.09357658]
[1768281644529,0.63019909,140.41,140.34,0.12055577]
[1768281645126,13.0,140.43,140.32,0.12055577]
[1768281645330,13.0,140.43,140.28,22.09357658]
[1768281645331,9.09357658,140.36,140.28,13.12055577]
[1768281645530,9.09357658,140.4,140.21,7.13168175]
[1768281645531,9.09357658,140.29,140.21,7.13168175]
[1768281645725,13.0,140.33,140.2,0.12055577]
[1768281645925,13.0,140.33,140.23,9.09357658]
[1768281646144,13.0,140.33,140.25,0.66660614]
[1768281646322,15.0,140.35,140.25,0.66660614]
[1768281646647,39.93410272,140.37,140.2,17.83058566]
[1768281646648,9.09357658,140.27,140.21,0.66660614]
[1768281646845,0.10357821,140.28,140.21,0.66660614]
[1768281647142,9.09357658,140.22,140.19,0.2]
[1768281647535,9.09357658,140.22,140.13,13.0]
[1768281647536,9.09357658,140.17,140.08,0.66660614]
[1768281647848,9.09357658,140.22,140.04,45.08623016]
[1768281647849,9.09357658,140.18,140.12,0.66660614]
[1768281648144,9.09357658,140.17,140.11,0.66660614]
[1768281648347,0.099,140.2,140.12,0.66660614]
[1768281648637,82.28185031,140.26,140.09,13.0]
[1768281648638,0.45228868,140.25,140.16,9.09357658]
[1768281648842,9.19257658,140.24,140.17,22.09357658]
[1768281649023,9.09357658,140.23,140.17,13.0]
[1768281649344,0.099,140.24,140.17,13.0]
[1768281649647,9.09357658,140.22,140.16,0.66660614]
[1768281649939,9.09357658,140.22,140.17,13.02]
[1768281650143,9.09357658,140.21,140.17,13.02]
[1768281650442,9.09357658,140.22,140.17,13.02]
[1768281650635,9.09357658,140.22,140.16,0.66660614]
[1768281650844,9.09357658,140.21,140.16,13.02]
[1768281651016,9.09357658,140.19,140.14,0.66660614]
[1768281651225,9.09357658,140.19,140.15,13.02]
[1768281651633,9.09357658,140.16,140.08,0.66660614]
[1768281651953,9.09357658,140.16,140.09,13.02]
[1768281651954,0.43531343,140.15,140.09,13.02]
[1768281652126,9.09357658,140.13,140.08,13.02]
[1768281652327,0.43531343,140.15,140.08,13.02]
[1768281652554,0.43531343,140.15,140.08,29.25227421]
[1768281652754,0.43531343,140.15,140.08,13.02]
[1768281652941,0.43531343,140.15,140.08,22.11357658]
[1768281653146,9.09357658,140.14,140.08,13.02]
[1768281653328,0.43531343,140.15,140.08,13.02]
[1768281653663,9.09357658,140.13,140.08,13.02]
[1768281653850,15.0,140.19,140.09,9.76018272]
[1768281653851,0.45228868,140.18,140.09,9.76018272]
[1768281654057,9.09357658,140.17,140.11,0.66660614]
[1768281654248,0.45228868,140.2,140.12,0.66660614]
[1768281654557,0.45228868,140.2,140.13,13.02]
[1768281654728,0.45228868,140.2,140.13,13.68660614]
[1768281654934,0.45228868,140.2,140.14,9.09357658]
[1768281655341,9.54586526,140.2,140.13,9.76018272]
[1768281655552,9.54586526,140.2,140.15,13.02]
[1768281655852,0.45228868,140.2,140.15,13.02]
[1768281656642,9.54586526,140.22,140.15,22.11357658]
[1768281657228,0.45228868,140.22,140.16,9.09357658]
[1768281657426,9.09357658,140.21,140.15,13.02]
[1768281657628,0.45228868,140.22,140.15,13.02]
[1768281657830,0.45228868,140.22,140.15,22.11357658]
[1768281658141,0.45228868,140.22,140.16,9.09357658]
[1768281658346,7.58398115,140.22,140.17,13.02]
[1768281658651,9.09357658,140.21,140.17,13.02]
[1768281658850,9.09357658,140.21,140.13,7.13619036]
[1768281658851,9.09357658,140.2,140.15,0.66660614]
[1768281659029,9.09357658,140.2,140.16,13.02]
[1768281659546,5.58920689,140.2,140.16,13.02]
[1768281660552,0.45228868,140.22,140.16,13.02]
[1768281660737,0.45228868,140.24,140.17,6.25581303]
[1768281660937,0.099,140.23,140.17,5.58920689]
[1768281661338,0.099,140.23,140.18,13.02]
[1768281661533,0.099,140.23,140.18,18.60920689]
[1768281661741,6.04149557,140.25,140.19,5.58920689]
[1768281662040,50.63656843,140.31,140.19,5.58920689]
[1768281662041,5.68820689,140.29,140.22,5.58920689]
[1768281662344,5.68820689,140.29,140.23,13.02]
[1768281663253,0.099,140.29,140.23,13.02]
[1768281663647,5.58920689,140.28,140.22,0.66660614]
[1768281663962,5.58920689,140.24,140.19,13.02]
[1768281664138,5.58920689,140.28,140.2,13.02]
[1768281664345,24.95009979,140.28,140.17,6.25581303]
[1768281664555,30.53930668,140.28,140.18,18.60920689]
[1768281664865,5.58920689,140.24,140.19,13.02]
[1768281665160,5.58920689,140.24,140.17,0.66660614]
[1768281665361,5.58920689,140.24,140.18,13.02]
[1768281665551,7.13031984,140.25,140.18,13.02]
[1768281665751,5.58920689,140.24,140.19,13.02]
[1768281665946,5.58920689,140.23,140.17,0.66660614]
[1768281666258,5.58920689,140.23,140.18,13.02]
[1768281666460,5.58920689,140.24,140.19,0.68304788]
[1768281666658,7.12968957,140.26,140.19,0.68304788]
[1768281666853,5.58920689,140.23,140.19,0.68304788]
[1768281667057,5.58920689,140.3,140.23,0.68304788]
[1768281667365,5.58920689,140.31,140.25,0.68304788]
[1768281667739,5.58920689,140.3,140.25,0.68304788]
[1768281668454,5.58920689,140.3,140.23,18.60920689]
[1768281668455,0.1,140.35,140.26,6.27225477]
[1768281668663,0.1,140.35,140.32,6.27225477]
[1768281668857,2.6,140.44,140.32,5.58920689]
[1768281668858,5.58920689,140.4,140.32,5.58920689]
[1768281669058,5.58920689,140.4,140.33,5.58920689]
[1768281669452,5.58920689,140.38,140.32,5.58920689]
[1768281669666,0.1599999,140.41,140.32,12.71566903]
[1768281669963,0.1599999,140.41,140.33,5.58920689]
[1768281669964,5.58920689,140.4,140.33,5.58920689]
[1768281670667,5.58920689,140.39,140.33,5.58920689]
[1768281670862,20.14213741,140.41,140.33,0.68304788]
[1768281671070,5.58920689,140.38,140.33,0.68304788]
[1768281671381,5.58920689,140.4,140.33,0.68304788]
[1768281671562,13.02,140.39,140.33,0.68304788]
[1768281671864,5.58920689,140.35,140.33,0.68304788]
[1768281672071,5.58920689,140.37,140.31,0.68304788]
[1768281672267,5.58920689,140.38,140.32,0.68304788]
[1768281672566,5.58920689,140.37,140.32,0.68304788]
[1768281673085,0.15820607,140.37,140.29,0.68304788]
[1768281673364,5.74683865,140.34,140.25,0.68304788]
[1768281673569,13.02,140.34,140.27,0.68304788]
[1768281673767,5.58920689,140.32,140.27,0.68304788]
[1768281673985,12.81441886,140.34,140.27,0.68304788]
[1768281674153,5.58920689,140.3,140.25,0.71702695]
[1768281674545,13.02,140.33,140.25,0.71702695]
[1768281674546,0.15879204,140.33,140.25,0.71702695]
[1768281674759,5.58920689,140.3,140.25,0.71702695]
[1768281675244,0.15879204,140.33,140.21,30.8501713]
[1768281675245,0.1599999,140.36,140.28,0.71702695]
[1768281675464,5.58920689,140.34,140.29,0.71702695]
[1768281675770,7.28149256,140.42,140.34,0.71702695]
[1768281675966,5.58920689,140.4,140.34,0.71702695]
[1768281676142,0.099,140.41,140.34,0.71702695]
[1768281676469,5.58920689,140.38,140.32,0.71702695]
[1768281676670,5.58920689,140.37,140.32,0.71702695]
[1768281677378,5.58920689,140.38,140.32,0.71702695]
[1768281677572,18.60920689,140.38,140.32,0.71702695]
[1768281677769,5.58920689,140.36,140.32,0.71702695]
[1768281677956,13.02,140.38,140.32,0.71702695]
[1768281678269,5.58920689,140.36,140.32,0.71702695]
[1768281678472,5.58920689,140.37,140.32,0.71702695]
[1768281679050,5.74859679,140.4,140.32,0.71702695]
[1768281679051,18.60920689,140.38,140.32,0.71702695]
[1768281679357,5.58920689,140.37,140.32,0.71702695]
[1768281679551,0.1599999,140.42,140.34,0.71702695]
[1768281679776,13.1799999,140.42,140.35,6.30623384]
[1768281680070,18.60920689,140.41,140.35,0.71702695]
[1768281680267,15.0,140.47,140.34,12.71464489]
[1768281680268,0.099,140.5,140.41,0.71702695]
[1768281680480,13.02,140.48,140.41,6.30623384]
[1768281680769,5.58920689,140.47,140.41,0.71702695]
[1768281681266,5.58920689,140.46,140.41,0.71702695]
[1768281681477,5.58920689,140.46,140.39,6.30623384]
[1768281681771,7.21866259,140.47,140.39,0.71702695]
[1768281681968,5.58920689,140.44,140.39,0.71702695]
[1768281682356,35.95712604,140.45,140.39,0.71702695]
[1768281682972,5.58920689,140.44,140.39,0.71702695]
[1768281683169,5.58920689,140.43,140.39,0.71702695]
[1768281683371,0.15820607,140.44,140.37,0.71702695]
[1768281683570,17.34791915,140.45,140.37,0.71702695]
[1768281683752,17.34791915,140.45,140.41,0.71702695]
[1768281684449,17.34791915,140.45,140.42,0.71702695]
[1768281684850,17.34791915,140.45,140.4,6.30623384]
[1768281685672,17.34791915,140.45,140.41,0.71702695]
[1768281686166,5.58920689,140.44,140.39,0.71702695]
[1768281686368,5.58920689,140.43,140.37,0.71702695]
[1768281686674,0.15820607,140.42,140.33,0.71702695]
[1768281686872,5.58920689,140.4,140.35,0.71702695]
[1768281688278,7.27987933,140.42,140.35,0.71702695]
[1768281688479,5.58920689,140.4,140.35,0.71702695]
[1768281688872,5.58920689,140.41,140.36,0.71702695]
[1768281689069,5.58920689,140.42,140.37,0.71702695]
[1768281689972,5.58920689,140.41,140.37,0.71702695]
[1768281690275,17.34791915,140.45,140.38,0.71702695]
[1768281690479,5.58920689,140.43,140.38,0.71702695]
[1768281690878,5.58920689,140.42,140.38,0.71702695]
[1768281691389,5.58920689,140.41,140.36,0.71702695]
[1768281691573,5.58920689,140.39,140.36,0.71702695]
[1768281691772,7.1245369,140.36,140.31,0.71702695]
[1768281692082,7.1245369,140.36,140.12,11.40481846]
[1768281692083,5.58920689,140.33,140.28,0.71702695]
[1768281692889,5.58920689,140.33,140.27,7.12895638]
[1768281692890,5.58920689,140.33,140.29,0.71702695]
[1768281693194,7.1245369,140.36,140.28,7.12846689]
[1768281693489,5.58920689,140.46,140.35,0.71702695]
[1768281693490,5.58920689,140.41,140.35,0.71702695]
[1768281693667,13.0,140.42,140.35,0.71702695]
[1768281693668,5.58920689,140.4,140.35,0.71702695]
[1768281693867,5.58920689,140.39,140.35,0.71702695]
[1768281694296,5.58920689,140.4,140.33,13.43206296]
[1768281694586,5.58920689,140.4,140.34,0.70679811]
[1768281694790,5.58920689,140.36,140.3,0.70679811]
[1768281694983,5.58920689,140.34,140.3,0.70679811]
[1768281695489,5.58920689,140.33,140.27,0.70679811]
[1768281695992,0.15879204,140.43,140.33,0.70679811]
[1768281696286,5.58920689,140.44,140.37,0.70679811]
[1768281696287,5.58920689,140.41,140.37,0.70679811]
[1768281696487,0.099,140.44,140.37,0.70679811]
[1768281696892,5.58920689,140.42,140.37,0.70679811]
[1768281697077,0.099,140.44,140.37,0.70679811]
[1768281697274,5.58920689,140.43,140.38,0.70679811]
[1768281697592,5.58920689,140.42,140.37,0.70679811]
[1768281698580,5.58920689,140.41,140.37,0.70679811]
[1768281698791,5.58920689,140.42,140.37,0.70679811]
[1768281699089,35.12079151,140.44,140.34,0.70679811]
[1768281699290,5.58920689,140.39,140.34,0.70679811]
[1768281699993,5.58920689,140.38,140.34,0.70679811]
[1768281700170,5.58920689,140.39,140.34,0.70679811]
[1768281700785,5.58920689,140.38,140.34,0.70679811]
[1768281700987,5.58920689,140.36,140.32,0.70679811]
[1768281701278,5.58920689,140.35,140.32,0.70679811]
[1768281701777,5.58920689,140.33,140.23,0.70679811]
[1768281702077,5.58920689,140.34,140.25,0.70679811]
[1768281702078,5.74683866,140.34,140.25,0.70679811]
[1768281702396,0.10134444,140.33,140.26,0.70679811]
[1768281702602,13.10134444,140.33,140.26,0.70679811]
[1768281702777,5.58920689,140.29,140.26,0.70679811]
[1768281703400,5.58920689,140.29,140.24,7.83743131]
[1768281703567,5.58920689,140.29,140.24,0.70679811]
[1768281703773,0.1570689,140.32,140.24,0.70679811]
[1768281704072,5.58920689,140.28,140.24,0.70679811]
[1768281704385,5.53219428,140.28,140.24,0.70679811]
[1768281704699,5.58920689,140.28,140.24,0.70679811]
[1768281705396,0.66099332,140.36,140.28,0.70679811]
[1768281705611,0.66099332,140.36,140.25,13.0]
[1768281705612,6.25020021,140.33,140.27,5.58920689]
[1768281705782,0.66099332,140.39,140.32,0.70679811]
[1768281705986,6.25020021,140.41,140.34,6.296005]
[1768281706201,6.25020021,140.4,140.34,6.296005]
[1768281706583,0.66099332,140.4,140.35,5.58920689]
[1768281707490,6.25020021,140.4,140.35,5.58920689]
[1768281707898,6.25020021,140.38,140.33,5.58920689]
[1768281708199,0.60401732,140.38,140.34,5.58920689]
[1768281710503,0.60401732,140.38,140.33,5.58920689]
[1768281710803,0.60401732,140.38,140.32,7.83329305]
[1768281711004,0.60401732,140.38,140.33,5.58920689]
[1768281711297,6.19322421,140.38,140.32,0.70679811]
[1768281711498,5.58920689,140.37,140.32,6.296005]
[1768281711704,5.58920689,140.37,140.32,0.70679811]
[1768281712079,6.19322421,140.38,140.33,5.58920689]
[1768281712502,6.19322421,140.38,140.32,0.70679811]
[1768281712890,5.58920689,140.36,140.3,0.70679811]
[1768281713123,0.66099332,140.44,140.34,5.58920689]
[1768281713411,7.11858847,140.48,140.34,5.58920689]
[1768281713412,0.66099332,140.42,140.37,5.58920689]
[1768281713985,6.25020021,140.42,140.37,5.58920689]
[1768281714217,0.66099332,140.42,140.37,5.58920689]
[1768281714517,6.25020021,140.42,140.36,5.58920689]
[1768281714690,0.66099332,140.42,140.36,5.58920689]
[1768281715010,6.25020021,140.41,140.35,0.6219761]
[1768281715382,6.25020021,140.4,140.33,0.6219761]
[1768281715606,5.58920689,140.39,140.34,5.58920689]
[1768281715903,6.25020021,140.4,140.35,5.58920689]
[1768281716493,6.25020021,140.4,140.34,5.58920689]
[1768281716688,6.25020021,140.39,140.34,5.58920689]
[1768281717105,6.25020021,140.39,140.33,0.6219761]
[1768281717405,6.25020021,140.38,140.32,18.58920689]
[1768281717601,0.66099332,140.32,140.22,0.2]
[1768281717802,5.58920689,140.23,140.16,7.82468637]
[1768281718006,5.58920689,140.22,140.12,0.70679811]
[1768281718207,5.58920689,140.22,140.16,6.296005]
[1768281718386,5.58920689,140.22,140.17,0.70679811]
[1768281718705,15.0,140.26,140.18,6.296005]
[1768281718906,5.58920689,140.23,140.18,0.70679811]
[1768281719286,9.08121457,140.21,140.18,0.70679811]
[1768281719493,9.08121457,140.22,140.18,0.70679811]
[1768281719885,9.08121457,140.22,140.16,13.70679811]
[1768281720082,9.08121457,140.22,140.16,9.78801268]
[1768281720281,0.66099332,140.25,140.16,0.70679811]
[1768281720282,9.08121457,140.21,140.16,0.70679811]
[1768281720510,9.08121457,140.2,140.16,0.70679811]
[1768281720709,9.08121457,140.21,140.16,0.70679811]
[1768281720907,15.12972688,140.24,140.16,0.70679811]
[1768281721210,0.12972688,140.24,140.16,0.70679811]
[1768281721412,0.66099332,140.27,140.19,9.78801268]
[1768281721595,9.08121457,140.25,140.19,9.78801268]
[1768281721797,9.08121457,140.25,140.2,0.70679811]
[1768281721992,9.08121457,140.26,140.2,9.78801268]
[1768281722198,9.08121457,140.26,140.21,0.70679811]
[1768281722588,0.66099332,140.27,140.21,0.70679811]
[1768281723009,0.66099332,140.27,140.21,9.78801268]
[1768281723220,9.74220789,140.27,140.21,0.70679811]
[1768281723716,0.07196,140.24,140.21,9.78801268]
[1768281723917,0.07196,140.24,140.21,0.70679811]
[1768281724218,0.07196,140.24,140.21,9.78801268]
[1768281724396,0.07196,140.24,140.21,0.70679811]
[1768281725917,0.07196,140.24,140.17,0.68988228]
[1768281726112,0.07196,140.24,140.2,0.68988228]
[1768281726523,0.07196,140.24,140.22,9.08121457]
[1768281726718,0.07196,140.24,140.21,9.77109685]
[1768281726912,7.12760255,140.3,140.21,9.77109685]
[1768281727115,9.08121457,140.26,140.21,9.77109685]
[1768281727319,9.08121457,140.26,140.21,0.68988228]
[1768281727519,22.12760255,140.3,140.21,0.68988228]
[1768281727726,9.08121457,140.25,140.21,0.68988228]
[1768281728199,9.08121457,140.28,140.21,0.68988228]
[1768281728200,9.08121457,140.24,140.21,0.68988228]
[1768281728400,9.08121457,140.28,140.21,0.68988228]
[1768281728705,9.08121457,140.25,140.21,0.68988228]
[1768281730510,9.08121457,140.23,140.18,0.68988228]
[1768281730710,9.08121457,140.22,140.18,0.68988228]
[1768281731515,9.08121457,140.21,140.18,0.68988228]
[1768281731906,9.08121457,140.21,140.16,0.68988228]
[1768281732607,9.08121457,140.2,140.16,0.68988228]
[1768281733224,9.08121457,140.21,140.16,0.68988228]
[1768281733733,0.03564636,140.24,140.16,9.77109685]
[1768281734033,9.08121457,140.21,140.16,0.68988228]
[1768281734235,0.03564636,140.24,140.17,0.69879926]
[1768281734435,9.08121457,140.23,140.17,0.69879926]
[1768281734602,9.08121457,140.23,140.17,9.78001383]
[1768281734808,9.08121457,140.23,140.17,0.69879926]
[1768281735009,9.08121457,140.22,140.17,0.69879926]
[1768281735205,9.08121457,140.2,140.15,0.69879926]
[1768281735404,9.08121457,140.2,140.15,13.71879926]
[1768281735639,9.08121457,140.2,140.16,0.69879926]
[1768281736234,9.08121457,140.2,140.15,13.02]
[1768281736428,9.08121457,140.18,140.13,9.08121457]
[1768281736632,0.03564636,140.2,140.12,22.80001383]
[1768281736831,9.08121457,140.18,140.13,0.69879926]
[1768281738045,0.03564636,140.2,140.13,0.69879926]
[1768281738240,9.08121457,140.19,140.13,0.69879926]
[1768281738427,9.08121457,140.19,140.13,9.78001383]
[1768281739131,9.08121457,140.18,140.13,0.69879926]
[1768281739741,9.08121457,140.22,140.11,0.69879926]
[1768281739742,0.03564636,140.19,140.11,0.69879926]
[1768281740031,9.08121457,140.18,140.12,9.78001383]
[1768281740228,9.08121457,140.13,140.08,0.69879926]
[1768281740431,0.03564636,140.15,140.08,0.69879926]
[1768281740610,9.08121457,140.12,140.08,0.69879926]
[1768281742324,9.08121457,140.12,140.06,9.78001383]
[1768281742516,9.08121457,140.11,140.06,0.69879926]
[1768281742832,0.03564636,140.13,140.06,0.69879926]
[1768281743032,9.08121457,140.1,140.06,0.69879926]
[1768281744435,7.17195752,140.13,140.06,0.69879926]
[1768281744642,9.08121457,140.1,140.06,0.69879926]
[1768281745548,9.08121457,140.09,140.04,0.69879926]
[1768281745846,0.03564636,140.11,140.04,0.69879926]
[1768281746047,9.08121457,140.08,140.04,0.69879926]
[1768281746422,9.08121457,140.09,140.04,0.69879926]
[1768281747721,9.08121457,140.07,140.03,0.2]
[1768281748516,9.11686093,140.07,140.03,0.2]
[1768281749031,9.08121457,140.06,140.03,0.2]
[1768281749235,9.11686093,140.07,140.03,0.2]
[1768281749918,9.08121457,140.04,140.03,0.2]
[1768281750120,9.08121457,140.05,140.03,0.2]
[1768281750319,0.03564636,140.07,140.03,0.2]
[1768281750525,9.08121457,140.05,140.03,0.2]
[1768281750745,0.03564636,140.07,140.03,0.16435364]
[1768281750746,9.08121457,140.04,140.03,0.16435364]
[1768281750941,9.08121457,140.04,139.99,0.69879926]
[1768281750942,9.08121457,140.04,139.98,13.22]
[1768281751128,9.08121457,140.02,139.98,13.22]
[1768281751330,9.08121457,140.03,139.98,13.91879926]
[1768281751530,9.08121457,140.02,139.98,13.91879926]
[1768281751935,9.08121457,140.04,139.98,0.2]
[1768281752127,9.08121457,140.0,139.98,0.2]
[1768281752545,9.08121457,139.99,139.98,0.2]
[1768281752747,9.08121457,140.04,139.98,0.2]
[1768281752943,9.08121457,140.0,139.98,0.2]
[1768281753142,9.08121457,140.04,139.98,0.2]
[1768281753143,22.12121457,140.04,139.98,0.2]
[1768281753328,9.08121457,140.0,139.98,0.2]
[1768281754133,9.08121457,140.04,139.98,0.2]
[1768281754422,13.04,140.05,139.98,0.2]
[1768281754618,9.08121457,140.01,139.98,0.2]
[1768281754947,9.08121457,140.04,139.99,0.67682387]
[1768281755443,9.08121457,140.03,139.99,0.67682387]
[1768281755633,9.08121457,140.01,139.98,0.2]
[1768281757247,9.08121457,140.01,139.93,0.2]
[1768281757248,0.10840659,139.98,139.93,0.2]
[1768281757456,0.10840659,139.98,139.94,13.04]
[1768281757457,9.08121457,139.96,139.94,13.04]
[1768281757630,9.08121457,139.97,139.94,13.04]
[1768281758153,9.08121457,139.98,139.94,13.04]
[1768281758336,0.66732226,140.0,139.94,13.04]
[1768281758530,9.08121457,139.98,139.94,13.04]
[1768281758730,9.08121457,139.97,139.94,13.04]
[1768281758932,9.08121457,139.97,139.93,0.2]
[1768281759248,0.6617331,139.98,139.93,0.2]
[1768281759549,9.08121457,139.95,139.94,13.04]
[1768281759849,9.74294767,139.98,139.94,13.04]
[1768281760041,9.08121457,139.95,139.94,13.04]
[1768281760237,9.05121458,139.95,139.94,13.04]
[1768281760426,9.05121458,139.95,139.93,0.2]
[1768281760622,9.08121457,139.95,139.93,0.2]
[1768281760834,9.08121457,139.95,139.94,13.04]
[1768281761043,9.08121457,139.95,139.93,0.2]
[1768281761347,5.12242913,139.95,139.94,13.04]
[1768281761545,2e-08,139.95,139.94,13.04]
[1768281761850,9.08121457,139.96,139.94,13.04]
[1768281762360,2.94742913,139.95,139.94,13.04]
[1768281762545,2.899253,139.95,139.94,13.04]
[1768281763242,2.899253,139.95,139.93,0.2]
[1768281763445,9.08121457,139.97,139.93,0.2]
[1768281763446,9.08121457,139.94,139.93,0.2]
[1768281764149,9.08121457,139.94,139.93,13.24]
[1768281764352,0.66732226,139.93,139.85,0.2]
[1768281764557,0.66732226,139.93,139.83,17.12]
[1768281764558,9.08121457,139.92,139.87,0.2]
[1768281764756,9.08121457,139.94,139.89,0.2]
[1768281765153,9.08121457,139.93,139.89,0.2]
[1768281765457,9.08121457,139.94,139.89,0.2]
[1768281765665,9.08121457,139.94,139.9,13.04]
[1768281765964,9.08121457,139.93,139.89,0.2]
[1768281766137,9.08121457,139.93,139.91,13.04]
[1768281766334,9.08121457,139.93,139.89,0.2]
[1768281767137,9.08121457,139.93,139.9,13.04]
[1768281767443,0.66732226,139.94,139.88,0.2]
[1768281767444,9.74853683,139.94,139.88,0.2]
[1768281767640,0.66732226,139.94,139.88,0.2]
[1768281767944,9.08121457,139.93,139.89,13.04]
[1768281768153,0.66732226,139.94,139.89,13.04]
[1768281768347,9.74853683,139.94,139.89,13.04]
[1768281768667,9.08121457,139.93,139.88,0.2]
[1768281768839,0.66732226,139.94,139.89,13.04]
[1768281769035,9.74853683,139.94,139.9,13.04]
[1768281770346,9.08121457,139.95,139.9,13.24]
[1768281770960,0.66732226,139.96,139.88,0.2]
[1768281771156,9.08121457,139.94,139.89,0.2]
[1768281771355,0.66732226,139.95,139.9,13.04]
[1768281771562,9.74853683,139.95,139.9,13.04]
[1768281772069,9.74853683,139.95,139.89,0.2]
[1768281772070,9.08121457,139.94,139.89,0.2]
[1768281772364,9.08121457,139.94,139.9,13.04]
[1768281772550,9.08121457,139.94,139.9,13.24]
[1768281772756,0.66732226,139.95,139.9,13.24]
[1768281772955,0.66732226,139.97,139.9,20.38787729]
[1768281773172,15.0,140.0,139.9,20.38787729]
[1768281773173,9.74853683,139.96,139.9,20.38787729]
[1768281773384,13.82209985,140.02,139.92,0.2]
[1768281773385,0.66732226,140.02,139.92,0.2]
[1768281773586,30.0,140.03,139.92,0.2]
[1768281773587,9.08121457,139.97,139.92,0.2]
[1768281773879,9.74853683,139.97,139.92,0.2]
[1768281774046,9.08121457,139.97,139.92,0.2]
[1768281774377,9.08121457,139.98,139.92,0.2]
[1768281774752,9.08121457,139.98,139.92,16.42803415]
[1768281775270,0.66732226,139.99,139.92,16.42803415]
[1768281775461,9.08121457,139.98,139.92,16.42803415]
[1768281776767,9.08121457,139.98,139.93,0.2]